[Event "17th Memorial Lezcano Montalvo 2025"]
[Site "Gran Canaria"]
[Date "2025.04.13"]
[Round "2.32"]
[White "De La Cruz Perez, Carlos"]
[Black "Estremera Panos, Sergio"]
[Result "1/2-1/2"]
[Annotator "ChessBase"]
[ECO "B63"]
[WhiteElo "1835"]
[BlackElo "2195"]
[PlyCount "78"]
[EventDate "2025.04.13"]
[EventType "swiss"]
[EventCountry "ESP"]
[SourceTitle "playchess.com"]
[Source "ChessBase"]
[SourceQuality "1"]
[TimeControl "5400+30"]

1. e4 {[%emt 0:00:05]} c5 {[%emt 0:00:17]} 2. Nf3 {[%emt 0:00:12]} d6 {[%emt 0:00:21]} 3. d4 {[%emt 0:00:09]} cxd4 {[%emt 0:00:08]} 4. Nxd4 {[%emt 0:00:07]} Nf6 {[%emt 0:00:08]} 5. Nc3 {[%emt 0:00:05]} Nc6 {[%emt 0:00:17]} 6. Bg5 {[%emt 0:01:28]} e6 {[%emt 0:00:19]} 7. Qd2 {[%emt 0:00:18]} Be7 {[%emt 0:00:42]} 8. O-O-O {[%emt 0:00:44]} O-O {[%emt 0:00:20]} 9. h4 {[%emt 0:05:14]} a6 {[%emt 0:21:21]} 10. f3 {[%emt 0:02:15]} Nxd4 {[%emt 0:00:22]} 11. Qxd4 {[%emt 0:00:06]} b5 {[%emt 0:00:13]} 12. Kb1 {[%emt 0:04:49]} Bb7 {[%emt 0:00:10]} 13. Bd3 {[%emt 0:05:01]} Rc8 {[%emt 0:08:17]} 14. g4 {[%emt 0:06:02]} Nd7 {[%emt 0:00:36]} 15. Bxe7 {[%emt 0:02:04]} Qxe7 {[%emt 0:00:07]} 16. f4 {[%emt 0:11:00]} e5 {[%emt 0:09:01]} 17. Qe3 {[%emt 0:03:35]} exf4 {[%emt 0:00:25]} 18. Qxf4 {[%emt 0:00:13]} Ne5 {[%emt 0:00:10]} 19. g5 {[%emt 0:09:26]} Rc5 {[%emt 0:11:59]} 20. Nd5 {[%emt 0:06:55]} Bxd5 {[%emt 0:01:45]} 21. exd5 {[%emt 0:00:38]} Nxd3 {[%emt 0:00:43]} 22. Rxd3 {[%emt 0:00:08]} Re8 {[%emt 0:00:15]} 23. Rf1 {[%emt 0:12:48]} Rc4 {[%emt 0:01:43]} 24. Qf2 {[%emt 0:00:38]} Re4 {[%emt 0:02:11]} 25. Rdd1 {[%emt 0:07:22]} Re2 {[%emt 0:02:42]} 26. Qf5 {[%emt 0:00:31]} Qc7 {[%emt 0:05:21]} 27. Rf2 {[%emt 0:05:12]} Re1 {[%emt 0:10:22]} 28. Rf1 {[%emt 0:00:33]} R1e5 {[%emt 0:00:29]} 29. Qf2 {[%emt 0:01:59]} Re2 {[%emt 0:00:24]} 30. Qf5 {[%emt 0:00:11]} g6 {[%emt 0:00:15]} 31. Qf6 {[%emt 0:02:24]} R8e5 {[%emt 0:12:43]} 32. c3 {[%emt 0:07:27]} Re7 {[%emt 0:08:10]} 33. Rc1 {[%emt 0:02:21]} Qc4 {[%emt 0:02:20]} 34. Qxd6 {[%emt 0:03:19]} Rxb2+ {[%emt 0:01:53]} 35. Kxb2 {[%emt 0:00:09]} Re2+ {[%emt 0:00:03]} 36. Rc2 {[%emt 0:00:14]} Rxc2+ {[%emt 0:00:05]} 37. Kxc2 {[%emt 0:00:03]} Qe2+ {[%emt 0:01:23]} 38. Kb3 {[%emt 0:00:46]} Qxf1 {[%emt 0:00:47]} 39. Qb8+ {[%emt 0:01:56]} Kg7 {[%emt 0:01:13]} 1/2-1/2

[Event "17th Memorial Lezcano Montalvo 2025"]
[Site "Gran Canaria"]
[Date "2025.04.13"]
[Round "2.33"]
[White "Rodriguez Lopez, David"]
[Black "Castro Miguelez, Jose"]
[Result "1/2-1/2"]
[Annotator "ChessBase"]
[ECO "B22"]
[WhiteElo "2182"]
[BlackElo "1846"]
[PlyCount "98"]
[EventDate "2025.04.13"]
[EventType "swiss"]
[EventCountry "ESP"]
[SourceTitle "playchess.com"]
[Source "ChessBase"]
[SourceQuality "1"]
[TimeControl "5400+30"]

1. e4 {[%emt 0:00:05]} c5 {[%emt 0:00:04]} 2. c3 {[%emt 0:00:08]} Nf6 {[%emt 0:00:04]} 3. e5 {[%emt 0:00:04]} Nd5 {[%emt 0:00:06]} 4. d4 {[%emt 0:00:03]} cxd4 {[%emt 0:00:06]} 5. Nf3 {[%emt 0:00:05]} Nc6 {[%emt 0:00:09]} 6. cxd4 {[%emt 0:00:05]} d6 {[%emt 0:00:09]} 7. Bc4 {[%emt 0:00:06]} dxe5 {[%emt 0:00:16]} 8. dxe5 {[%emt 0:00:06]} Be6 {[%emt 0:00:59]} 9. O-O {[%emt 0:00:20]} Nc7 {[%emt 0:00:10]} 10. Bb3 {[%emt 0:01:28]} Qxd1 {[%emt 0:01:58]} 11. Rxd1 {[%emt 1:33:30]} Bg4 {[%emt 0:02:54]} 12. Bf4 {[%emt 0:00:00]} g5 {[%emt 0:03:42]} 13. Bg3 {[%emt 0:00:00]} Bg7 {[%emt 0:04:54]} 14. Nbd2 {[%emt 0:00:00]} O-O {[%emt 0:06:23]} 15. Re1 {[%emt 0:00:00]} Rfd8 {[%emt 0:03:47]} 16. Rac1 {[%emt 0:00:00]} Ne6 {[%emt 0:01:25]} 17. h3 {[%emt 0:00:00]} Bf5 {[%emt 0:02:26]} 18. Ne4 {[%emt 0:00:00]} h6 {[%emt 0:09:26]} 19. Nc5 {[%emt 0:00:00]} Nxc5 {[%emt 0:07:39]} 20. Rxc5 {[%emt 0:00:00]} e6 {[%emt 0:01:22]} 21. a3 {[%emt 0:00:00]} Rac8 {[%emt 0:02:59]} 22. Rec1 {[%emt 0:00:00]} Bf8 {[%emt 0:01:42]} 23. R5c3 {[%emt 0:00:00]} Be4 {[%emt 0:02:22]} 24. Ba4 {[%emt 0:00:00]} a6 {[%emt 0:02:48]} 25. Nh2 {[%emt 0:00:00]} h5 {[%emt 0:06:29]} 26. h4 {[%emt 0:00:00]} g4 {[%emt 0:10:25]} 27. f3 {[%emt 0:00:00]} gxf3 {[%emt 0:03:47]} 28. gxf3 {[%emt 0:00:00]} Bd5 {[%emt 0:01:15]} 29. Kf2 {[%emt 0:00:00]} b5 {[%emt 0:01:14]} 30. Bd1 {[%emt 0:00:00]} b4 {[%emt 0:03:51]} 31. axb4 {[%emt 0:00:00]} Bxb4 {[%emt 0:00:16]} 32. R3c2 {[%emt 0:00:00]} Ba5 {[%emt 0:05:38]} 33. Be2 {[%emt 0:00:51]} Bb6+ {[%emt 0:00:52]} 34. Kf1 {[%emt 0:00:36]} a5 {[%emt 0:00:51]} 35. Bf2 {[%emt 0:00:20]} Bxf2 {[%emt 0:15:32]} 36. Kxf2 {[%emt 0:00:03]} Rb8 {[%emt 0:00:00]} 37. Rxc6 {[%emt 0:01:51]} Bxc6 {[%emt 0:00:00]} 38. Rxc6 {[%emt 0:00:02]} Rxb2 {[%emt 0:00:00]} 39. Nf1 {[%emt 0:00:04]} Ra8 {[%emt 0:00:00]} 40. Rc3 {[%emt 0:00:16]} Ra2 {[%emt 0:00:00]} 41. Ne3 {[%emt 0:01:15]} a4 {[%emt 0:00:00]} 42. Nc2 {[%emt 0:04:06]} a3 {[%emt 0:00:00]} 43. f4 {[%emt 0:00:31]} Rxc2 {[%emt 0:00:00]} 44. Rxc2 {[%emt 0:00:02]} a2 {[%emt 0:00:00]} 45. Rc1 {[%emt 0:00:06]} a1=Q {[%emt 0:00:00]} 46. Rxa1 {[%emt 0:00:02]} Rxa1 {[%emt 0:00:00]} 47. Bxh5 {[%emt 0:00:04]} Rh1 {[%emt 0:00:00]} 48. Kg3 {[%emt 0:00:07]} Rg1+ {[%emt 0:00:00]} 49. Kf3 {[%emt 0:00:50]} Rh1 {[%emt 0:07:00]} 1/2-1/2

[Event "17th Memorial Lezcano Montalvo 2025"]
[Site "Gran Canaria"]
[Date "2025.04.13"]
[Round "2.34"]
[White "Pinilla Sanchez, Josep A."]
[Black "Garcia Brion, Eduardo"]
[Result "0-1"]
[Annotator "ChessBase"]
[ECO "D02"]
[WhiteElo "1827"]
[BlackElo "2171"]
[PlyCount "72"]
[EventDate "2025.04.13"]
[EventType "swiss"]
[EventCountry "ESP"]
[SourceTitle "playchess.com"]
[Source "ChessBase"]
[SourceQuality "1"]
[TimeControl "5400+30"]

1. Nf3 {[%emt 0:00:04]} Nc6 {[%emt 0:00:20]} 2. d4 {[%emt 0:00:33]} d5 {[%emt 0:00:05]} 3. g3 {[%emt 0:00:11]} Bg4 {[%emt 0:00:12]} 4. Bg2 {[%emt 0:00:12]} Qd7 {[%emt 0:00:19]} 5. O-O {[%emt 0:01:36]} e6 {[%emt 0:01:56]} 6. c4 {[%emt 0:02:22]} dxc4 {[%emt 0:00:58]} 7. Na3 {[%emt 0:04:39]} O-O-O {[%emt 0:00:30]} 8. Nxc4 {[%emt 0:07:59]} f6 {[%emt 0:03:29]} 9. Qa4 {[%emt 0:05:02]} Kb8 {[%emt 0:19:47]} 10. Na5 {[%emt 0:23:17]} Bxf3 {[%emt 0:16:21]} 11. exf3 {[%emt 0:07:10]} Nxd4 {[%emt 0:00:15]} 12. Qxd7 {[%emt 0:01:02]} Rxd7 {[%emt 0:00:03]} 13. Be3 {[%emt 0:01:19]} Bb4 {[%emt 0:06:23]} 14. Rad1 {[%emt 0:05:45]} Bxa5 {[%emt 0:19:03]} 15. Bxd4 {[%emt 0:03:10]} Kc8 {[%emt 0:03:09]} 16. Bh3 {[%emt 0:01:20]} f5 {[%emt 0:00:14]} 17. a3 {[%emt 0:02:11]} Bb6 {[%emt 0:00:20]} 18. Bc3 {[%emt 0:01:30]} Nf6 {[%emt 0:01:45]} 19. Rde1 {[%emt 0:06:25]} Rd6 {[%emt 0:08:55]} 20. Re2 {[%emt 0:04:40]} Rf8 {[%emt 0:01:46]} 21. Rfe1 {[%emt 0:01:36]} Kd7 {[%emt 0:00:07]} 22. Be5 {[%emt 0:02:39]} Rd5 {[%emt 0:00:21]} 23. Bg2 {[%emt 0:01:42]} c6 {[%emt 0:00:49]} 24. f4 {[%emt 0:01:56]} Rd3 {[%emt 0:00:07]} 25. Bc3 {[%emt 0:01:12]} Re8 {[%emt 0:01:19]} 26. Bxf6 {[%emt 0:01:56]} gxf6 {[%emt 0:00:07]} 27. Bh3 {[%emt 0:00:27]} Rd5 {[%emt 0:00:13]} 28. Bg2 {[%emt 0:00:56]} Rb5 {[%emt 0:01:03]} 29. Rd1+ {[%emt 0:00:45]} Ke7 {[%emt 0:00:21]} 30. Bh3 {[%emt 0:01:49]} Rd8 {[%emt 0:00:20]} 31. Rde1 {[%emt 0:01:44]} Rd6 {[%emt 0:00:12]} 32. b4 {[%emt 0:01:31]} Rbd5 {[%emt 0:00:38]} 33. a4 {[%emt 0:01:45]} Kf7 {[%emt 0:00:32]} 34. a5 {[%emt 0:01:35]} Bd4 {[%emt 0:00:16]} 35. a6 {[%emt 0:01:58]} bxa6 {[%emt 0:00:16]} 36. Rd1 {[%emt 0:00:03]} Bxf2+ {[%emt 0:15:59]} 0-1

[Event "17th Memorial Lezcano Montalvo 2025"]
[Site "Gran Canaria"]
[Date "2025.04.13"]
[Round "2.35"]
[White "Marrero Cardenes, Agustin"]
[Black "Pace, Gabriele"]
[Result "1-0"]
[Annotator "ChessBase"]
[ECO "B17"]
[WhiteElo "2163"]
[BlackElo "1895"]
[PlyCount "37"]
[EventDate "2025.04.13"]
[EventType "swiss"]
[EventCountry "ESP"]
[SourceTitle "playchess.com"]
[Source "ChessBase"]
[SourceQuality "1"]
[TimeControl "5400+30"]

1. d4 {[%emt 0:00:03]} d5 {[%emt 0:00:01]} 2. c4 {[%emt 0:00:08]} e6 {[%emt 0:00:03]} 3. Nf3 {[%emt 0:00:08]} c6 {[%emt 0:00:06]} 4. Nc3 {[%emt 0:02:07]} Be7 {[%emt 0:01:31]} 5. e4 {[%emt 0:01:31]} dxe4 {[%emt 0:00:02]} 6. Nxe4 {[%emt 1:29:33]} Nf6 {[%emt 0:00:32]} 7. Bd3 {[%emt 0:00:00]} Nbd7 {[%emt 0:00:34]} 8. O-O {[%emt 0:00:00]} h6 {[%emt 0:03:05]} 9. Qe2 {[%emt 0:00:00]} Nxe4 10. Qxe4 {[%emt 0:00:00]} Nf6 {[%emt 0:02:50]} 11. Qe2 {[%emt 0:00:00]} O-O {[%emt 0:00:45]} 12. Rd1 {[%emt 0:00:00]} Qc7 {[%emt 0:01:48]} 13. Ne5 {[%emt 0:00:00]} c5 {[%emt 0:08:26]} 14. Bf4 {[%emt 0:00:00]} Bd6 {[%emt 0:01:54]} 15. dxc5 {[%emt 0:00:00]} Qxc5 {[%emt 0:00:36]} 16. Nd7 {[%emt 0:00:00]} Bxd7 {[%emt 0:05:23]} 17. Bxd6 {[%emt 0:00:00]} Qg5 {[%emt 0:00:29]} 18. Bxf8 {[%emt 0:00:00]} Bc6 {[%emt 0:00:25]} 19. f4 {[%emt 0:06:30]} 1-0

[Event "17th Memorial Lezcano Montalvo 2025"]
[Site "Gran Canaria"]
[Date "2025.04.13"]
[Round "2.37"]
[White "Baez Ruiz, Victor Antonio"]
[Black "Calzetta Ruiz, Monica"]
[Result "0-1"]
[Annotator "ChessBase"]
[ECO "B30"]
[WhiteElo "1632"]
[BlackElo "2224"]
[PlyCount "40"]
[EventDate "2025.04.13"]
[EventType "swiss"]
[EventCountry "ESP"]
[SourceTitle "playchess.com"]
[Source "ChessBase"]
[SourceQuality "1"]
[TimeControl "5400+30"]

1. Nf3 {[%emt 0:00:10]} c5 {[%emt 0:00:17]} 2. e4 {[%emt 0:00:15]} Nc6 {[%emt 0:00:07]} 3. Bb5 {[%emt 0:00:21]} g6 {[%emt 0:00:35]} 4. Nc3 {[%emt 0:00:49]} Nd4 {[%emt 0:01:33]} 5. Nxd4 {[%emt 0:02:26]} cxd4 {[%emt 0:00:07]} 6. Ne2 {[%emt 0:01:09]} Nf6 {[%emt 0:05:04]} 7. f3 {[%emt 0:05:20]} Bg7 {[%emt 0:01:56]} 8. O-O {[%emt 0:01:42]} O-O {[%emt 0:01:54]} 9. Kh1 {[%emt 0:00:46]} e5 {[%emt 0:07:02]} 10. Bc4 {[%emt 0:06:28]} d5 {[%emt 0:02:05]} 11. exd5 {[%emt 0:02:08]} Nxd5 {[%emt 0:00:08]} 12. Bxd5 {[%emt 0:02:41]} Qxd5 {[%emt 0:00:07]} 13. Ng3 {[%emt 0:01:29]} Bd7 {[%emt 0:05:35]} 14. d3 {[%emt 0:03:33]} Rac8 {[%emt 0:01:07]} 15. Bd2 {[%emt 0:02:43]} f5 {[%emt 0:05:40]} 16. a3 {[%emt 1:06:30]} Rf6 {[%emt 0:06:32]} 17. Rc1 {[%emt 0:00:00]} Qa2 {[%emt 0:04:49]} 18. Rb1 {[%emt 0:00:00]} Ba4 {[%emt 0:08:42]} 19. b3 {[%emt 0:00:00]} Rxc2 {[%emt 0:00:17]} 20. Rf2 {[%emt 0:00:00]} Bxb3 {[%emt 0:01:06]} 0-1

[Event "17th Memorial Lezcano Montalvo 2025"]
[Site "Gran Canaria"]
[Date "2025.04.13"]
[Round "2.38"]
[White "Ramos Santana, Marcelino"]
[Black "Alonso Galvez, Ana Belen"]
[Result "1-0"]
[Annotator "NA"]
[ECO "C78"]
[WhiteElo "1903"]
[BlackElo "1554"]
[PlyCount "75"]
[EventDate "2025.04.13"]
[EventType "swiss"]
[EventCountry "ESP"]
[SourceTitle "playchess.com"]
[Source "ChessBase"]
[SourceQuality "1"]
[TimeControl "5400+30"]

1. e4 {[%emt 0:00:05]} e5 {[%emt 0:00:11]} 2. Nf3 {[%emt 0:00:30]} Nc6 {[%emt 0:00:20]} 3. Bb5 {[%emt 0:01:09]} a6 {[%emt 0:00:33]} 4. Ba4 {[%emt 0:00:07]} Nf6 {[%emt 0:00:52]} 5. O-O {[%emt 0:02:49]} Bc5 {[%emt 0:01:46]} 6. c3 {[%emt 0:02:04]} Nxe4 {[%emt 0:02:38]} 7. d4 {[%emt 0:07:22]} exd4 {[%emt 0:04:43]} 8. cxd4 {[%emt 0:00:16]} Ba7 {[%emt 0:02:11]} 9. d5 {[%emt 0:02:14]} Ne7 {[%emt 0:02:36]} 10. Bc2 {[%emt 0:06:17]} Nxf2 {[%emt 0:02:20]} 11. Rxf2 {[%emt 0:01:02]} Bxf2+ {[%emt 0:00:12]} 12. Kxf2 {[%emt 0:00:24]} d6 {[%emt 0:00:11]} 13. Nc3 {[%emt 0:07:28]} O-O {[%emt 0:01:37]} 14. h3 {[%emt 0:12:19]} c6 {[%emt 0:05:58]} 15. Kg1 {[%emt 0:05:28]} Qb6+ {[%emt 0:01:14]} 16. Qd4 {[%emt 0:00:22]} Qxd4+ {[%emt 0:01:06]} 17. Nxd4 {[%emt 0:00:04]} cxd5 {[%emt 0:00:33]} 18. Bf4 {[%emt 0:00:55]} Rd8 {[%emt 0:01:52]} 19. Re1 {[%emt 0:03:02]} Nc6 {[%emt 0:01:42]} 20. Nxc6 {[%emt 0:06:03]} bxc6 {[%emt 0:00:08]} 21. Bxd6 {[%emt 0:00:25]} Bxh3 {[%emt 0:00:11]} 22. Be7 {[%emt 0:02:18]} Re8 {[%emt 0:03:47]} 23. gxh3 {[%emt 0:00:59]} d4 {[%emt 0:00:12]} 24. Na4 {[%emt 0:01:47]} Rad8 {[%emt 0:00:52]} 25. Bh4 {[%emt 0:03:01]} f6 {[%emt 0:01:00]} 26. Rxe8+ {[%emt 0:00:57]} Rxe8 {[%emt 0:00:09]} 27. Bf2 {[%emt 0:00:36]} Rd8 {[%emt 0:00:35]} 28. Bd3 {[%emt 0:00:29]} Kh8 {[%emt 0:00:13]} 29. Nc5 {[%emt 0:00:37]} Rd5 {[%emt 0:00:57]} 30. b4 {[%emt 0:00:39]} a5 {[%emt 0:00:32]} 31. a3 {[%emt 0:00:44]} f5 {[%emt 0:01:52]} 32. Kg2 {[%emt 0:01:08]} g5 {[%emt 0:02:03]} 33. Ne6 {[%emt 0:00:40]} axb4 {[%emt 0:01:39]} 34. axb4 {[%emt 0:01:02]} f4 {[%emt 0:00:52]} 35. Bxd4+ {[%emt 0:01:14]} Kg8 {[%emt 0:00:32]} 36. Bc4 {[%emt 0:00:17]} Rd6 {[%emt 0:02:05]} 37. Nd8+ {[%emt 0:04:25]} Kf8 {[%emt 0:00:26]} 38. Bc5 {[%emt 0:00:10]} 1-0

[Event "17th Memorial Lezcano Montalvo 2025"]
[Site "Gran Canaria"]
[Date "2025.04.13"]
[Round "2.42"]
[White "Almeida Cubas, Mirella"]
[Black "Jerez Baez, Alvaro"]
[Result "1-0"]
[Annotator "NA"]
[ECO "B33"]
[WhiteElo "1824"]
[BlackElo "1583"]
[PlyCount "105"]
[EventDate "2025.04.13"]
[EventType "swiss"]
[EventCountry "ESP"]
[SourceTitle "playchess.com"]
[Source "ChessBase"]
[SourceQuality "1"]
[TimeControl "5400+30"]

1. e4 {[%emt 0:00:07]} c5 {[%emt 0:00:09]} 2. Nf3 {[%emt 0:00:34]} Nc6 {[%emt 0:00:10]} 3. d4 {[%emt 0:00:20]} cxd4 {[%emt 0:00:13]} 4. Nxd4 {[%emt 0:00:06]} e5 {[%emt 0:00:08]} 5. Nb5 {[%emt 0:02:50]} d6 {[%emt 0:00:13]} 6. a4 {[%emt 0:00:51]} Nf6 {[%emt 0:00:24]} 7. N1c3 {[%emt 0:01:21]} a6 {[%emt 0:00:36]} 8. Na3 {[%emt 0:00:27]} Be7 {[%emt 0:02:26]} 9. Be2 {[%emt 0:05:30]} O-O {[%emt 0:00:42]} 10. O-O {[%emt 0:01:28]} Be6 {[%emt 0:01:18]} 11. Be3 {[%emt 0:05:49]} Rc8 {[%emt 0:02:59]} 12. Bf3 {[%emt 0:03:51]} Nd7 {[%emt 0:02:44]} 13. Nd5 {[%emt 0:04:41]} Bg5 {[%emt 0:00:19]} 14. Nc4 {[%emt 0:07:46]} Bxe3 {[%emt 0:01:09]} 15. Ncxe3 {[%emt 0:01:44]} Nd4 {[%emt 0:03:50]} 16. c3 {[%emt 0:02:03]} Nxf3+ {[%emt 0:01:42]} 17. Qxf3 {[%emt 0:00:12]} Bxd5 {[%emt 0:02:37]} 18. Nxd5 {[%emt 0:00:47]} Nb6 {[%emt 0:03:42]} 19. Rfd1 {[%emt 0:01:29]} Nxd5 {[%emt 0:04:37]} 20. Rxd5 {[%emt 0:00:21]} Qb6 {[%emt 0:00:24]} 21. Rd2 {[%emt 0:06:05]} Rc4 {[%emt 0:11:55]} 22. Qd3 {[%emt 0:07:57]} Qc6 {[%emt 0:04:06]} 23. f3 {[%emt 0:06:21]} Rd8 {[%emt 0:04:05]} 24. a5 {[%emt 0:04:21]} Ra4 {[%emt 0:05:33]} 25. Rxa4 {[%emt 0:01:17]} Qxa4 {[%emt 0:00:38]} 26. Qd5 {[%emt 0:00:35]} Qb5 {[%emt 0:06:19]} 27. Qxb5 {[%emt 0:00:53]} axb5 {[%emt 0:00:07]} 28. Rd5 {[%emt 0:00:26]} g6 {[%emt 0:05:13]} 29. Rxb5 {[%emt 0:00:16]} Rd7 {[%emt 0:00:26]} 30. Kf2 {[%emt 0:00:26]} f5 {[%emt 0:01:11]} 31. Ke3 {[%emt 0:00:59]} Kf7 {[%emt 0:00:50]} 32. Rb6 {[%emt 0:01:03]} h5 {[%emt 0:01:55]} 33. b4 {[%emt 0:01:28]} Ke6 {[%emt 0:04:17]} 34. b5 {[%emt 0:00:54]} Rc7 {[%emt 0:01:28]} 35. Kd3 {[%emt 0:00:21]} g5 {[%emt 0:00:34]} 36. exf5+ {[%emt 0:00:28]} Kxf5 {[%emt 0:00:31]} 37. Rxd6 {[%emt 0:00:26]} Rc5 {[%emt 0:00:45]} 38. c4 {[%emt 0:00:24]} g4 {[%emt 0:00:23]} 39. a6 {[%emt 0:00:59]} bxa6 {[%emt 0:01:40]} 40. Rxa6 {[%emt 0:00:15]} Rc8 {[%emt 0:01:42]} 41. Rc6 {[%emt 0:01:07]} Ra8 {[%emt 0:00:27]} 42. Ra6 {[%emt 0:00:19]} Rc8 {[%emt 0:00:31]} 43. b6 {[%emt 0:00:21]} Kf4 {[%emt 0:01:08]} 44. b7 {[%emt 0:01:22]} e4+ {[%emt 0:03:16]} 45. fxe4 {[%emt 0:00:33]} Rd8+ {[%emt 0:00:13]} 46. Ke2 {[%emt 0:00:27]} Rb8 {[%emt 0:10:57]} 47. Rb6 {[%emt 0:01:23]} Kxe4 {[%emt 0:00:17]} 48. c5 {[%emt 0:00:37]} Kd5 {[%emt 0:00:52]} 49. c6 {[%emt 0:00:35]} Kd6 {[%emt 0:00:29]} 50. Ra6 {[%emt 0:00:24]} h4 {[%emt 0:02:42]} 51. Ra8 {[%emt 0:00:19]} Kc7 {[%emt 0:00:58]} 52. Rxb8 {[%emt 0:00:13]} Kxb8 {[%emt 0:00:07]} 53. Ke3 {[%emt 0:00:02]} 1-0

[Event "17th Memorial Lezcano Montalvo 2025"]
[Site "Gran Canaria"]
[Date "2025.04.13"]
[Round "2.43"]
[White "Garcia Almeida, Valeria"]
[Black "Schmitz, Manuela"]
[Result "1/2-1/2"]
[Annotator "NA"]
[ECO "E17"]
[WhiteElo "1582"]
[BlackElo "1815"]
[PlyCount "66"]
[EventDate "2025.04.13"]
[EventType "swiss"]
[EventCountry "ESP"]
[SourceTitle "playchess.com"]
[Source "ChessBase"]
[SourceQuality "1"]
[TimeControl "5400+30"]

1. c4 {[%emt 0:00:19]} e6 {[%emt 0:00:07]} 2. g3 {[%emt 0:00:42]} Nf6 {[%emt 0:00:19]} 3. Bg2 {[%emt 0:00:52]} d5 {[%emt 0:01:26]} 4. Nf3 {[%emt 0:03:01]} Be7 {[%emt 0:01:46]} 5. d4 {[%emt 0:02:51]} O-O {[%emt 0:01:46]} 6. Nbd2 {[%emt 1:25:45]} b6 {[%emt 0:03:06]} 7. cxd5 {[%emt 0:00:00]} exd5 {[%emt 0:00:22]} 8. O-O {[%emt 0:00:00]} Bb7 {[%emt 0:02:02]} 9. b3 {[%emt 0:00:00]} Nbd7 {[%emt 0:09:11]} 10. Bb2 {[%emt 0:00:00]} c5 {[%emt 0:01:57]} 11. Rc1 {[%emt 0:00:00]} Rc8 {[%emt 0:02:25]} 12. Re1 {[%emt 0:00:00]} Re8 {[%emt 0:08:43]} 13. Nf1 {[%emt 0:00:00]} Ne4 {[%emt 0:03:57]} 14. N3d2 {[%emt 0:00:00]} Ndf6 {[%emt 0:07:56]} 15. Ne3 {[%emt 0:00:00]} Qd7 {[%emt 0:04:53]} 16. Nf3 {[%emt 0:00:00]} Qe6 {[%emt 0:04:21]} 17. Ne5 {[%emt 0:00:00]} cxd4 {[%emt 0:01:43]} 18. Qxd4 {[%emt 0:00:00]} Bc5 {[%emt 0:04:44]} 19. Qd3 {[%emt 0:00:00]} d4 {[%emt 0:03:37]} 20. N3c4 {[%emt 0:00:00]} Nxf2 {[%emt 0:02:27]} 21. Kxf2 {[%emt 0:00:00]} Bxg2 {[%emt 0:01:15]} 22. Kxg2 {[%emt 0:00:00]} b5 {[%emt 0:00:59]} 23. Nd2 {[%emt 0:00:00]} Qxe5 {[%emt 0:01:10]} 24. Nf3 {[%emt 0:00:00]} Qe7 {[%emt 0:02:57]} 25. Qxb5 {[%emt 0:00:00]} Ng4 {[%emt 0:01:40]} 26. Bxd4 {[%emt 0:00:00]} Bxd4 {[%emt 0:00:28]} 27. Rxc8 {[%emt 0:00:00]} Rxc8 {[%emt 0:01:33]} 28. Nxd4 {[%emt 0:00:00]} Qe4+ {[%emt 0:07:02]} 29. Nf3 {[%emt 0:00:00]} Re8 {[%emt 0:03:05]} 30. Qd3 {[%emt 0:00:00]} Ne3+ {[%emt 0:01:00]} 31. Kf2 {[%emt 0:00:00]} Ng4+ {[%emt 0:01:13]} 32. Kg2 {[%emt 0:00:00]} Ne3+ {[%emt 0:01:08]} 33. Kf2 {[%emt 0:00:00]} Ng4+ {[%emt 0:00:09]} 1/2-1/2